Workbook

Sheet Sheet1
A1: 类型 | B1: 序号 | C1: 关卡ID | D1: 战斗数量 | E1: 备注
A2: 1 | B2: 1 | C2: 10401 | E2: 主线4-1
A3: 1 | B3: 2 | C3: 10402 | E3: 主线4-2
A4: 1 | B4: 3 | C4: 10403 | E4: 主线4-3
A5: 1 | B5: 4 | C5: 10404 | E5: 主线4-4
A6: 1 | B6: 5 | C6: 10405 | E6: 主线4-5
A7: 1 | B7: 6 | C7: 10406 | E7: 主线4-6
A8: 1 | B8: 7 | C8: 10407 | E8: 主线4-7
A9: 1 | B9: 8 | C9: 10408 | E9: 主线4-8
A10: 1 | B10: 9 | C10: 10409 | E10: 主线4-9
A11: 1 | B11: 10 | C11: 10410 | E11: 主线4-10
A12: 1 | B12: 11 | C12: 10411 | E12: 主线4-11
A13: 1 | B13: 12 | C13: 10412 | E13: 主线4-12
A14: 1 | B14: 13 | C14: 10413 | E14: 主线4-13
A15: 1 | B15: 14 | C15: 10414 | E15: 主线4-14
A16: 1 | B16: 15 | C16: 10415 | E16: 主线4-15
A17: 1 | B17: 16 | C17: 10416 | E17: 主线4-16
A18: 1 | B18: 17 | C18: 10417 | E18: 主线4-17
A19: 1 | B19: 18 | C19: 10418 | E19: 主线4-18
A20: 1 | B20: 19 | C20: 10419 | E20: 主线4-19
A21: 1 | B21: 20 | C21: 10420 | E21: 主线4-20
A22: 1 | B22: 21 | C22: 10421 | E22: 主线4-21
A23: 1 | B23: 22 | C23: 10422 | E23: 主线4-22
A24: 1 | B24: 23 | C24: 10423 | E24: 主线4-23
A25: 1 | B25: 24 | C25: 10424 | E25: 主线4-24
A26: 1 | B26: 25 | C26: 10425 | E26: 主线4-25
A27: 1 | B27: 26 | C27: 10426 | E27: 主线4-26
A28: 1 | B28: 27 | C28: 10427 | E28: 主线4-27
A29: 1 | B29: 28 | C29: 10428 | E29: 主线4-28
A30: 1 | B30: 29 | C30: 10501 | E30: 主线5-1
A31: 1 | B31: 30 | C31: 10502 | E31: 主线5-2
A32: 1 | B32: 31 | C32: 10503 | E32: 主线5-3
A33: 1 | B33: 32 | C33: 10504 | E33: 主线5-4
A34: 1 | B34: 33 | C34: 10505 | E34: 主线5-5
A35: 1 | B35: 34 | C35: 10506 | E35: 主线5-6
A36: 1 | B36: 35 | C36: 10507 | E36: 主线5-7
A37: 1 | B37: 36 | C37: 10508 | E37: 主线5-8
A38: 1 | B38: 37 | C38: 10509 | E38: 主线5-9
A39: 1 | B39: 38 | C39: 10510 | E39: 主线5-10
A40: 1 | B40: 39 | C40: 10511 | E40: 主线5-11
A41: 1 | B41: 40 | C41: 10512 | E41: 主线5-12
A42: 1 | B42: 41 | C42: 10513 | E42: 主线5-13
A43: 1 | B43: 42 | C43: 10514 | E43: 主线5-14
A44: 1 | B44: 43 | C44: 10515 | E44: 主线5-15
A45: 1 | B45: 44 | C45: 10516 | E45: 主线5-16
A46: 1 | B46: 45 | C46: 10517 | E46: 主线5-17
A47: 1 | B47: 46 | C47: 10518 | E47: 主线5-18
A48: 1 | B48: 47 | C48: 10519 | E48: 主线5-19
A49: 1 | B49: 48 | C49: 10520 | E49: 主线5-20
A50: 1 | B50: 49 | C50: 10521 | E50: 主线5-21
A51: 1 | B51: 50 | C51: 10522 | E51: 主线5-22
A52: 1 | B52: 51 | C52: 10523 | E52: 主线5-23
A53: 1 | B53: 52 | C53: 10524 | E53: 主线5-24
A54: 1 | B54: 53 | C54: 10525 | E54: 主线5-25
A55: 1 | B55: 54 | C55: 10526 | E55: 主线5-26
A56: 1 | B56: 55 | C56: 10527 | E56: 主线5-27
A57: 1 | B57: 56 | C57: 10528 | E57: 主线5-28
A58: 1 | B58: 57 | C58: 10529 | E58: 主线5-29
A59: 1 | B59: 58 | C59: 10530 | E59: 主线5-30
A60: 1 | B60: 59 | C60: 10531 | E60: 主线5-31
A61: 1 | B61: 60 | C61: 10532 | E61: 主线5-32
A62: 1 | B62: 61 | C62: 10601 | E62: 主线6-1
A63: 1 | B63: 62 | C63: 10602 | E63: 主线6-2
A64: 1 | B64: 63 | C64: 10603 | E64: 主线6-3
A65: 1 | B65: 64 | C65: 10604 | E65: 主线6-4
A66: 1 | B66: 65 | C66: 10605 | E66: 主线6-5
A67: 1 | B67: 66 | C67: 10606 | E67: 主线6-6
A68: 1 | B68: 67 | C68: 10607 | E68: 主线6-7
A69: 1 | B69: 68 | C69: 10608 | E69: 主线6-8
A70: 1 | B70: 69 | C70: 10609 | E70: 主线6-9
A71: 1 | B71: 70 | C71: 10610 | E71: 主线6-10
A72: 1 | B72: 71 | C72: 10611 | E72: 主线6-11
A73: 1 | B73: 72 | C73: 10612 | E73: 主线6-12
A74: 1 | B74: 73 | C74: 10613 | E74: 主线6-13
A75: 1 | B75: 74 | C75: 10614 | E75: 主线6-14
A76: 1 | B76: 75 | C76: 10615 | E76: 主线6-15
A77: 1 | B77: 76 | C77: 10616 | E77: 主线6-16
A78: 1 | B78: 77 | C78: 10617 | E78: 主线6-17
A79: 1 | B79: 78 | C79: 10618 | E79: 主线6-18
A80: 1 | B80: 79 | C80: 10619 | E80: 主线6-19
A81: 1 | B81: 80 | C81: 10620 | E81: 主线6-20
A82: 1 | B82: 81 | C82: 10621 | E82: 主线6-21
A83: 1 | B83: 82 | C83: 10622 | E83: 主线6-22
A84: 1 | B84: 83 | C84: 10623 | E84: 主线6-23
A85: 1 | B85: 84 | C85: 10624 | E85: 主线6-24
A86: 1 | B86: 85 | C86: 10625 | E86: 主线6-25
A87: 1 | B87: 86 | C87: 10626 | E87: 主线6-26
A88: 1 | B88: 87 | C88: 10627 | E88: 主线6-27
A89: 1 | B89: 88 | C89: 10628 | E89: 主线6-28
A90: 1 | B90: 89 | C90: 10629 | E90: 主线6-29
A91: 1 | B91: 90 | C91: 10630 | E91: 主线6-30
A92: 1 | B92: 91 | C92: 10631 | E92: 主线6-31
A93: 1 | B93: 92 | C93: 10632 | E93: 主线6-32
A94: 1 | B94: 93 | C94: 10633 | E94: 主线6-33
A95: 1 | B95: 94 | C95: 10634 | E95: 主线6-34
A96: 1 | B96: 95 | C96: 10635 | E96: 主线6-35
A97: 1 | B97: 96 | C97: 10636 | E97: 主线6-36
A98: 1 | B98: 97 | C98: 10701 | E98: 主线7-1
A99: 1 | B99: 98 | C99: 10702 | E99: 主线7-2
A100: 1 | B100: 99 | C100: 10703 | E100: 主线7-3
A101: 1 | B101: 100 | C101: 10704 | E101: 主线7-4
A102: 1 | B102: 101 | C102: 10705 | E102: 主线7-5
A103: 1 | B103: 102 | C103: 10706 | E103: 主线7-6
A104: 1 | B104: 103 | C104: 10707 | E104: 主线7-7
A105: 1 | B105: 104 | C105: 10708 | E105: 主线7-8
A106: 1 | B106: 105 | C106: 10709 | E106: 主线7-9
A107: 1 | B107: 106 | C107: 10710 | E107: 主线7-10
A108: 1 | B108: 107 | C108: 10711 | E108: 主线7-11
A109: 1 | B109: 108 | C109: 10712 | E109: 主线7-12
A110: 1 | B110: 109 | C110: 10713 | E110: 主线7-13
A111: 1 | B111: 110 | C111: 10714 | E111: 主线7-14
A112: 1 | B112: 111 | C112: 10715 | E112: 主线7-15
A113: 1 | B113: 112 | C113: 10716 | E113: 主线7-16
A114: 1 | B114: 113 | C114: 10717 | E114: 主线7-17
A115: 1 | B115: 114 | C115: 10718 | E115: 主线7-18
A116: 1 | B116: 115 | C116: 10719 | E116: 主线7-19
A117: 1 | B117: 116 | C117: 10720 | E117: 主线7-20
A118: 1 | B118: 117 | C118: 10721 | E118: 主线7-21
A119: 1 | B119: 118 | C119: 10722 | E119: 主线7-22
A120: 1 | B120: 119 | C120: 10723 | E120: 主线7-23
A121: 1 | B121: 120 | C121: 10724 | E121: 主线7-24
A122: 1 | B122: 121 | C122: 10725 | E122: 主线7-25
A123: 1 | B123: 122 | C123: 10726 | E123: 主线7-26
A124: 1 | B124: 123 | C124: 10727 | E124: 主线7-27
A125: 1 | B125: 124 | C125: 10728 | E125: 主线7-28
A126: 1 | B126: 125 | C126: 10729 | E126: 主线7-29
A127: 1 | B127: 126 | C127: 10730 | E127: 主线7-30
A128: 1 | B128: 127 | C128: 10731 | E128: 主线7-31
A129: 1 | B129: 128 | C129: 10732 | E129: 主线7-32
A130: 1 | B130: 129 | C130: 10733 | E130: 主线7-33
A131: 1 | B131: 130 | C131: 10734 | E131: 主线7-34
A132: 1 | B132: 131 | C132: 10735 | E132: 主线7-35
A133: 1 | B133: 132 | C133: 10736 | E133: 主线7-36
A134: 1 | B134: 133 | C134: 10737 | E134: 主线7-37
A135: 1 | B135: 134 | C135: 10738 | E135: 主线7-38
A136: 1 | B136: 135 | C136: 10739 | E136: 主线7-39
A137: 1 | B137: 136 | C137: 10740 | E137: 主线7-40
A138: 1 | B138: 137 | C138: 10801 | E138: 主线8-1
A139: 1 | B139: 138 | C139: 10802 | E139: 主线8-2
A140: 1 | B140: 139 | C140: 10803 | E140: 主线8-3
A141: 1 | B141: 140 | C141: 10804 | E141: 主线8-4
A142: 1 | B142: 141 | C142: 10805 | E142: 主线8-5
A143: 1 | B143: 142 | C143: 10806 | E143: 主线8-6
A144: 1 | B144: 143 | C144: 10807 | E144: 主线8-7
A145: 1 | B145: 144 | C145: 10808 | E145: 主线8-8
A146: 1 | B146: 145 | C146: 10809 | E146: 主线8-9
A147: 1 | B147: 146 | C147: 10810 | E147: 主线8-10
A148: 1 | B148: 147 | C148: 10811 | E148: 主线8-11
A149: 1 | B149: 148 | C149: 10812 | E149: 主线8-12
A150: 1 | B150: 149 | C150: 10813 | E150: 主线8-13
A151: 1 | B151: 150 | C151: 10814 | E151: 主线8-14
A152: 1 | B152: 151 | C152: 10815 | E152: 主线8-15
A153: 1 | B153: 152 | C153: 10816 | E153: 主线8-16
A154: 1 | B154: 153 | C154: 10817 | E154: 主线8-17
A155: 1 | B155: 154 | C155: 10818 | E155: 主线8-18
A156: 1 | B156: 155 | C156: 10819 | E156: 主线8-19
A157: 1 | B157: 156 | C157: 10820 | E157: 主线8-20
A158: 1 | B158: 157 | C158: 10821 | E158: 主线8-21
A159: 1 | B159: 158 | C159: 10822 | E159: 主线8-22
A160: 1 | B160: 159 | C160: 10823 | E160: 主线8-23
A161: 1 | B161: 160 | C161: 10824 | E161: 主线8-24
A162: 1 | B162: 161 | C162: 10825 | E162: 主线8-25
A163: 1 | B163: 162 | C163: 10826 | E163: 主线8-26
A164: 1 | B164: 163 | C164: 10827 | E164: 主线8-27
A165: 1 | B165: 164 | C165: 10828 | E165: 主线8-28
A166: 1 | B166: 165 | C166: 10829 | E166: 主线8-29
A167: 1 | B167: 166 | C167: 10830 | E167: 主线8-30
A168: 1 | B168: 167 | C168: 10831 | E168: 主线8-31
A169: 1 | B169: 168 | C169: 10832 | E169: 主线8-32
A170: 1 | B170: 169 | C170: 10833 | E170: 主线8-33
A171: 1 | B171: 170 | C171: 10834 | E171: 主线8-34
A172: 1 | B172: 171 | C172: 10835 | E172: 主线8-35
A173: 1 | B173: 172 | C173: 10836 | E173: 主线8-36
A174: 1 | B174: 173 | C174: 10837 | E174: 主线8-37
A175: 1 | B175: 174 | C175: 10838 | E175: 主线8-38
A176: 1 | B176: 175 | C176: 10839 | E176: 主线8-39
A177: 1 | B177: 176 | C177: 10840 | E177: 主线8-40
A178: 1 | B178: 177 | C178: 10901 | E178: 主线9-1
A179: 1 | B179: 178 | C179: 10902 | E179: 主线9-2
A180: 1 | B180: 179 | C180: 10903 | E180: 主线9-3
A181: 1 | B181: 180 | C181: 10904 | E181: 主线9-4
A182: 1 | B182: 181 | C182: 10905 | E182: 主线9-5
A183: 1 | B183: 182 | C183: 10906 | E183: 主线9-6
A184: 1 | B184: 183 | C184: 10907 | E184: 主线9-7
A185: 1 | B185: 184 | C185: 10908 | E185: 主线9-8
A186: 1 | B186: 185 | C186: 10909 | E186: 主线9-9
A187: 1 | B187: 186 | C187: 10910 | E187: 主线9-10
A188: 1 | B188: 187 | C188: 10911 | E188: 主线9-11
A189: 1 | B189: 188 | C189: 10912 | E189: 主线9-12
A190: 1 | B190: 189 | C190: 10913 | E190: 主线9-13
A191: 1 | B191: 190 | C191: 10914 | E191: 主线9-14
A192: 1 | B192: 191 | C192: 10915 | E192: 主线9-15
A193: 1 | B193: 192 | C193: 10916 | E193: 主线9-16
A194: 1 | B194: 193 | C194: 10917 | E194: 主线9-17
A195: 1 | B195: 194 | C195: 10918 | E195: 主线9-18
A196: 1 | B196: 195 | C196: 10919 | E196: 主线9-19
A197: 1 | B197: 196 | C197: 10920 | E197: 主线9-20
A198: 1 | B198: 197 | C198: 10921 | E198: 主线9-21
A199: 1 | B199: 198 | C199: 10922 | E199: 主线9-22
A200: 1 | B200: 199 | C200: 10923 | E200: 主线9-23
... 1957 more rows
